[Event "Susha Chess Rapid Women 2022"]
[Site "Shusha"]
[Date "2022.09.22"]
[Round "2.2"]
[White "Beydullayeva, Govhar"]
[Black "Efroimski, Marsel"]
[Result "1/2-1/2"]
[ECO "D41"]
[WhiteElo "2346"]
[BlackElo "2462"]
[Annotator "TA"]
[PlyCount "115"]
[EventDate "2022.09.21"]
[EventType "tourn"]
[EventCountry "AZE"]
[SourceTitle "playchess.com"]
[Source "ChessBase"]
[SourceQuality "1"]
[TimeControl "900+10"]

{[%evp 26,115,2,10,6,0,0,0,0,0,0,0,0,-7,0,-7,24,21,26,0,38,0,0,0,0,6,6,0,70,74,63,46,94,95,94,101,144,139,139,107,137,106,103,85,116,131,151,137,162,177,162,129,134,18,85,18,18,19,30,14,14,14,31,31,31,31,31,14,31,16,31,0,14,0,0,0,0,0,0,0,0,0,0,0,0,0,0,0,0,0,0,0]} 1. d4 {[%emt 0:00:02]} Nf6 {[%emt 0:00:01]} 2. c4 {[%emt 0:00:01]} e6 {[%emt 0:00:01]} 3. Nf3 {[%emt 0:00:02]} d5 {[%emt 0:00:01]} 4. Nc3 {[%emt 0:00:01]} c5 {[%emt 0:00:01]} 5. cxd5 {[%emt 0:00:03]} Nxd5 {[%emt 0:00:02]} 6. e4 {[%emt 0:00:03]} Nxc3 {[%emt 0:00:02]} 7. bxc3 {[%emt 0:00:01]} cxd4 {[%emt 0:00:01]} 8. cxd4 {[%emt 0:00:01]} Bb4+ {[%emt 0:00:01]} 9. Bd2 {[%emt 0:00:02]} Bxd2+ {[%emt 0:00:02]} 10. Qxd2 {[%emt 0:00:01]} O-O {[%emt 0:00:02]} 11. Bc4 {[%emt 0:00:05]} Nd7 {[%emt 0:00:02]} 12. O-O {[%emt 0:00:03]} b6 {[%emt 0:00:01]} 13. Rad1 {[%emt 0:00:08]} Bb7 {[%emt 0:00:02]} 14. Rfe1 {[%emt 0:00:02]} Rc8 {[%emt 0:00:01] D41: Queen's Gambit Declined: Semi-Tarrasch with 5 cxd5.} 15. Bb3 {[%emt 0:00:01]} Re8 {[%emt 0:00:03]} 16. h4 {[%emt 0:00:05]} h6 {[%emt 0:00:33]} 17. Ba4 {[%emt 0:00:35]} Bc6 {[%emt 0:01:52]} 18. Bb3 {[%emt 0:00:06]} Bb7 {[%emt 0:00:36]} 19. Qf4 {[%emt 0:02:55]} Qc7 {[%emt 0:00:25]} 20. e5 {[%emt 0:00:02] [#]} Bxf3 $146 {[%emt 0:00:19]} ({Predecessor:} 20... b5 21. Nd2 a5 22. a4 bxa4 23. Bxa4 Red8 24. Re3 Nf6 25. Ra3 Nd5 26. Qg4 Nc3 27. Re1 h5 28. Qxh5 Nxa4 {0-1 (34) Shalamberidze,A (2347)-Davtyan,A (2204) Yerevan 2022}) 21. Qxf3 {[%emt 0:01:12]} b5 {[%emt 0:00:19]} 22. Re3 {[%emt 0:00:37]} a5 {[%emt 0:00:17][%cal Ba7a5,Ba5a4,Ba4b3][%mdl 32] Threatens to win with ...a4.} 23. a3 {[%emt 0:05:19]} a4 {[%emt 0:03:34]} 24. Ba2 {[%emt 0:00:00]} Qc2 {[%emt 0:00:08]} 25. Bb1 {[%emt 0:00:01]} Qb2 {[%emt 0:00:20]} (25... Qc6 26. Qf4 $16) 26. Re2 $36 {[%emt 0:01:14][%cal Be3e2,Be2b2,Bb2b3][%mdl 2080] White fights for an advantage.} Qb3 {[%emt 0:00:59]} ({Better is} 26... Qc3 $1 $11) 27. Qxb3 $1 $14 {[%emt 0:00:08]} axb3 {[%emt 0:00:01]} 28. Rb2 $1 {[%emt 0:00:00]} Rc3 {[%emt 0:00:02] [#]} (28... Red8 $14) 29. Rd3 $1 $16 {[%emt 0:00:01]} Rc1+ {[%emt 0:02:11]} 30. Kh2 {[%emt 0:00:02]} f6 {[%emt 0:00:01]} 31. exf6 {[%emt 0:01:23]} Nxf6 {[%emt 0:00:13]} 32. Rbxb3 {[%emt 0:00:21]} Ne4 {[%emt 0:01:05]} 33. f3 {[%emt 0:00:22]} Nd6 {[%emt 0:00:31]} 34. Rdc3 {[%emt 0:00:10]} Rd1 {[%emt 0:02:41]} 35. Bd3 {[%emt 0:00:56]} Rd8 {[%emt 0:01:51]} 36. Rb4 {[%emt 0:01:17]} Nf5 {[%emt 0:00:36]} 37. Bxf5 {[%emt 0:00:35]} ({Much less strong is} 37. Bxb5 R1xd4 38. Rxd4 Nxd4 $16) ({Not} 37. Rxb5 Nxd4 38. Ra5 {[#]} (38. Re5 Nxf3+ 39. gxf3 R8xd3 $11) 38... Nxf3+ $1 39. gxf3 R8xd3 40. Rxd3 Rxd3 $11) 37... exf5 {[%emt 0:00:01]} 38. Rxb5 {[%emt 0:00:29]} R8xd4 {[%emt 0:00:10]} 39. Rxf5 {[%emt 0:00:36]} (39. Kg3 $16) 39... Rxh4+ $18 {[%emt 0:00:05][%mdl 4096] Endgame KRR-KRR} 40. Kg3 {[%emt 0:00:01]} Ra4 $1 {[%emt 0:00:17]} 41. Rf4 {[%emt 0:02:14]} Ra7 {[%emt 0:00:04]} 42. a4 {[%emt 0:00:17]} Ra1 $1 {[%emt 0:00:04] Inhibits Ra3.} 43. Rcc4 {[%emt 0:00:03]} Ra2 {[%emt 0:00:01]} 44. Rg4 {[%emt 0:00:15]} Kh7 {[%emt 0:00:33]} 45. Kh3 {[%emt 0:00:11]} Ra3 {[%emt 0:00:18]} 46. Rgd4 {[%emt 0:00:05]} Ra5 {[%emt 0:00:11]} 47. Kg3 {[%emt 0:00:30]} Ra2 {[%emt 0:00:13]} 48. f4 {[%emt 0:00:10]} Ra6 {[%emt 0:00:18] The position is equal.} 49. Kf3 {[%emt 0:00:07]} Ra3+ {[%emt 0:00:04]} 50. Kf2 {[%emt 0:00:05]} Ra2+ {[%emt 0:00:03]} 51. Kf3 {[%emt 0:00:02]} Ra3+ {[%emt 0:00:01]} 52. Ke4 {[%emt 0:00:11]} Rg3 {[%emt 0:00:12]} 53. Rd2 {[%emt 0:00:03]} Ra3 {[%emt 0:00:04] Inhibits Ra2.} 54. Rdd4 {[%emt 0:00:22]} Rg3 {[%emt 0:00:02]} 55. Rc2 {[%emt 0:00:13]} Ra3 {[%emt 0:00:05] Inhibits Ra2.} 56. Rcc4 {[%emt 0:00:15]} Rg3 {[%emt 0:00:01]} 57. Rd2 {[%emt 0:00:04]} Ra3 {[%emt 0:00:03] Prevents Ra2.} 58. Rdd4 {[%emt 0:00:14] Weighted Error Value: White=0.12 (very precise) /Black=0.10 (very precise)} 1/2-1/2

[Event "Susha Chess Rapid Women 2022"]
[Site "Shusha"]
[Date "2022.09.22"]
[Round "2.3"]
[White "Ozturk Orenli, Kubra"]
[Black "Dzagnidze, Nana"]
[Result "0-1"]
[ECO "E00"]
[WhiteElo "2319"]
[BlackElo "2526"]
[Annotator "TA"]
[PlyCount "83"]
[EventDate "2022.09.21"]
[EventType "tourn"]
[EventCountry "AZE"]
[SourceTitle "playchess.com"]
[Source "ChessBase"]
[SourceQuality "1"]
[TimeControl "900+10"]

{[%evp 9,83,36,37,41,49,37,58,40,58,37,58,37,40,35,47,4,12,0,0,9,0,0,-4,-4,18,0,11,0,0,0,11,7,5,5,21,21,20,14,24,21,6,0,0,-10,0,0,0,0,0,0,20,0,14,0,6,0,0,0,0,0,0,-55,-54,-62,-65,-53,-62,-89,-43,-58,-64,-70,-72,-72,-58,-60]} 1. d4 {[%emt 0:00:02]} e6 {[%emt 0:00:03]} 2. c4 {[%emt 0:00:09]} Bb4+ {[%emt 0:00:03]} 3. Bd2 {[%emt 0:00:10]} Qe7 {[%emt 0:00:03]} 4. Nf3 {[%emt 0:00:03]} f5 {[%emt 0:01:41]} 5. g3 {[%emt 0:00:21]} b6 {[%emt 0:00:12]} 6. Bg2 {[%emt 0:00:10] A40: Unusual replies to 1 d4.} Bb7 {[%emt 0:00:03]} 7. O-O {[%emt 0:00:09] Strongly threatening Bg5.} (7. Bxb4 {with more complications.} Qxb4+ 8. Nc3 Qxb2 9. Nb5) 7... Bxd2 {[%emt 0:00:33]} 8. Qxd2 {[%emt 0:00:22] White is slightly better.} Nf6 {[%emt 0:00:04] Inhibits d5.} 9. Nc3 {[%emt 0:00:08]} Ne4 {[%emt 0:03:26]} 10. Qc2 {[%emt 0:00:14]} Nxc3 {[%emt 0:01:25]} 11. Qxc3 {[%emt 0:00:03][%cal Od4d5]} O-O {[%emt 0:00:16]} 12. b4 {[%emt 0:01:31]} d6 {[%emt 0:00:20] [#]} 13. Qb3 $146 {[%emt 0:04:03]} ({Predecessor:} 13. Rac1 Nd7 14. Rfe1 Rae8 15. c5 Nf6 16. cxd6 cxd6 17. Qc7 f4 18. a3 e5 19. dxe5 dxe5 {½-½ (44) Chirita,A (2024)-Baciu,A (2126) Mamaia 2013}) 13... Be4 {[%emt 0:01:13]} 14. Rac1 {[%emt 0:01:38]} Nd7 {[%emt 0:00:21]} 15. Rfd1 {[%emt 0:01:11]} a5 {[%emt 0:00:54]} 16. a3 {[%emt 0:00:04][%cal Ba2a3,Ba3b4,Bb4b5][%mdl 32]} Nf6 {[%emt 0:02:32]} (16... f4 {seems wilder.} 17. c5 Bd5 18. cxd6 cxd6 19. Qd3 fxg3 20. hxg3 Nf6) 17. Ne1 {[%emt 0:01:14]} axb4 {[%emt 0:00:13]} 18. axb4 {[%emt 0:00:01]} Kh8 {[%emt 0:01:21]} 19. f3 {[%emt 0:01:04]} Bc6 {[%emt 0:00:03] [#] ...Ba4 is the strong threat.} 20. b5 {[%emt 0:00:34]} Bb7 {[%emt 0:00:01]} 21. Nd3 {[%emt 0:00:15]} e5 {[%emt 0:00:06]} 22. dxe5 {[%emt 0:00:47]} dxe5 {[%emt 0:00:02][%cal Bd6e5,Be5e4][%mdl 32]} 23. Qb4 {[%emt 0:00:11]} Qe6 {[%emt 0:01:12]} 24. Qc3 {[%emt 0:01:34]} Rfe8 {[%emt 0:00:18]} 25. Ra1 {[%emt 0:01:06]} e4 {[%emt 0:00:27]} 26. Nf4 {[%emt 0:00:13]} Qe7 {[%emt 0:00:01]} 27. Rxa8 {[%emt 0:00:35]} Bxa8 {[%emt 0:00:02]} 28. Qd4 {[%emt 0:00:45]} exf3 {[%emt 0:00:23]} 29. exf3 {[%emt 0:00:07]} Qa3 {[%emt 0:00:49]} 30. Rd3 {[%emt 0:00:23]} Qb4 {[%emt 0:00:26]} 31. h4 {[%emt 0:00:16][%cal Bh2h4,Bh4h5][%mdl 32]} Bb7 {[%emt 0:00:34]} 32. Kh2 {[%emt 0:00:03]} Kg8 {[%emt 0:00:31]} 33. h5 {[%emt 0:00:15][%cal Oh5h6]} h6 {[%emt 0:00:25]} 34. Rd1 {[%emt 0:00:21]} Qe7 {[%emt 0:00:15]} 35. Rd2 {[%emt 0:00:16]} (35. Ra1 $11) 35... Qf7 $15 {[%emt 0:00:05]} 36. c5 {[%emt 0:00:30]} bxc5 {[%emt 0:00:16]} 37. Qxc5 {[%emt 0:00:03]} Nxh5 {[%emt 0:00:02]} 38. Nd5 {[%emt 0:00:16]} Bxd5 {[%emt 0:00:24]} (38... Qg6 $17 39. Qf2 (39. Qxc7 $2 Qg5 $19) 39... f4) 39. Qxd5 {[%emt 0:00:07]} f4 {[%emt 0:00:18]} 40. Qxf7+ {[%emt 0:00:20]} Kxf7 {[%emt 0:00:01]} 41. g4 {[%emt 0:00:07]} Nf6 {[%emt 0:00:07]} 42. Rc2 {Weighted Error Value: White=0.09 (flawless) /Black=0.06 (flawless)} 0-1

[Event "Susha Chess Rapid Women 2022"]
[Site "Shusha"]
[Date "2022.09.22"]
[Round "2.4"]
[White "Zawadzka, Jolanta"]
[Black "Fataliyeva, Ulviyya"]
[Result "1-0"]
[ECO "C02"]
[WhiteElo "2401"]
[BlackElo "2408"]
[Annotator "TA"]
[PlyCount "71"]
[EventDate "2022.09.21"]
[EventType "tourn"]
[EventCountry "AZE"]
[SourceTitle "playchess.com"]
[Source "ChessBase"]
[SourceQuality "1"]
[TimeControl "900+10"]

{[%evp 14,71,8,8,16,15,30,19,13,3,19,0,45,26,50,1,5,15,52,8,31,0,70,41,46,29,84,78,102,96,135,117,171,171,199,188,190,193,187,173,173,157,860,864,1281,1244,1504,1559,1807,1760,29990,29983,29983,29984,29993,29993,29995,29996,29996,29997]} 1. e4 {[%emt 0:00:02]} e6 {[%emt 0:00:02]} 2. d4 {[%emt 0:00:02]} d5 {[%emt 0:00:01]} 3. e5 {[%emt 0:00:02]} c5 {[%emt 0:00:03]} 4. c3 {[%emt 0:00:01]} Nc6 {[%emt 0:00:24]} 5. Nf3 {[%emt 0:00:03]} Bd7 {[%emt 0:00:10]} 6. Na3 {[%emt 0:00:04]} cxd4 {[%emt 0:01:02]} 7. cxd4 {[%emt 0:00:03]} Qb6 {[%emt 0:00:02]} 8. Nc2 {[%emt 0:00:09]} Nge7 {[%emt 0:00:25] C02: French: Advance Variation.} 9. Bd3 {[%emt 0:00:31]} Na5 {[%emt 0:01:03]} 10. O-O {[%emt 0:04:17]} Bb5 {[%emt 0:01:00] The position is equal.} 11. b3 {[%emt 0:00:56]} Rc8 {[%emt 0:00:47] [#]} 12. h4 $146 {[%emt 0:03:20]} ({Predecessor:} 12. Ba3 Bxd3 13. Qxd3 Nf5 14. Bxf8 Kxf8 15. Ne3 g6 16. Ng4 Kg7 17. Nf6 Nc6 18. Rad1 {0-1 (33) Moen,O (2237)-Abdrlauf,E (2231) Drammen 2019}) 12... a6 {[%emt 0:04:37]} 13. h5 {[%emt 0:01:14]} h6 {[%emt 0:01:32]} 14. Be3 {[%emt 0:01:15]} (14. Bxb5+ $14 Qxb5 15. Ba3) 14... Bxd3 {[%emt 0:01:23]} 15. Qxd3 {[%emt 0:00:02]} Qb5 {[%emt 0:00:02]} 16. Qd2 {[%emt 0:01:27]} Nec6 {[%emt 0:00:47]} (16... Nf5 {seems wilder.} 17. Bf4 Be7 18. g4 Nh4) 17. Nfe1 {[%emt 0:00:17]} Bb4 {[%emt 0:01:17]} ({Better is} 17... Nb4 $11) 18. Nxb4 $14 {[%emt 0:00:05]} Qxb4 {[%emt 0:00:28]} 19. Qd3 {[%emt 0:00:56]} Na7 {[%emt 0:00:18]} (19... Ne7 $11 {remains equal.}) 20. f4 {[%emt 0:00:53]} Qb5 {[%emt 0:00:46]} 21. Qd2 {[%emt 0:00:07]} N5c6 {[%emt 0:00:02]} 22. Nd3 {[%emt 0:00:12]} Qb6 {[%emt 0:00:43]} (22... Ne7 $16) 23. f5 $18 {[%emt 0:00:30]} exf5 {[%emt 0:00:14]} 24. Rxf5 {[%emt 0:00:32] Black must now prevent Qf2.} Ne7 {[%emt 0:00:28]} (24... Nxd4 $2 25. Raf1 O-O 26. e6 Qxe6 27. Bxd4 $18) 25. Rf3 {[%emt 0:00:26] Raf1 is the strong threat.} Qe6 {[%emt 0:00:45]} 26. Raf1 {[%emt 0:00:08]} O-O {[%emt 0:00:01]} 27. Rg3 {[%emt 0:00:56]} Nf5 {[%emt 0:00:50] [#] Loses the game.} (27... Kh7 $16 28. Nf4 (28. Nc5 Rxc5 29. dxc5 Nac6 $16) 28... Qc6) 28. Rxf5 $1 {[%emt 0:00:38][%mdl 512]} Qxf5 {[%emt 0:00:01]} (28... Kh7 29. Rf2) 29. Bxh6 $1 {[%emt 0:00:02]} g6 {[%emt 0:00:27]} 30. Bxf8 {[%emt 0:00:22][%cal Od2h6] Threatening mate with Qh6!} Kxf8 {[%emt 0:00:18]} 31. hxg6 {[%emt 0:00:06]} Qe4 {[%emt 0:00:00]} 32. gxf7 {[%emt 0:00:15] White mates.} Qxd4+ {[%emt 0:00:02]} 33. Kh2 {[%emt 0:00:10]} Kxf7 {[%emt 0:00:14]} 34. Rf3+ {[%emt 0:00:10]} Ke7 {[%emt 0:00:21]} 35. Qg5+ {[%emt 0:00:02]} Kd7 {[%emt 0:00:01]} 36. Qg7+ {[%emt 0:00:26] Weighted Error Value: White=0.11 (very precise) /Black=0.47} 1-0

[Event "Susha Chess Rapid Women 2022"]
[Site "Shusha"]
[Date "2022.09.22"]
[Round "2.5"]
[White "Balajayeva, Khanim"]
[Black "Mammadzada, Gunay"]
[Result "1-0"]
[ECO "B22"]
[WhiteElo "2379"]
[BlackElo "2473"]
[Annotator "TA"]
[PlyCount "116"]
[EventDate "2022.09.21"]
[EventType "tourn"]
[EventCountry "AZE"]
[SourceTitle "playchess.com"]
[Source "ChessBase"]
[SourceQuality "1"]
[TimeControl "900+10"]

{[%evp 14,116,7,-9,0,0,17,6,8,16,15,0,4,0,0,0,0,0,0,-16,-18,-21,-21,-37,-33,-34,-31,-40,0,-58,-12,-12,5,-73,-94,-72,-15,-16,-15,-35,0,0,77,77,69,60,77,77,78,77,97,79,118,127,95,2,171,24,335,335,335,330,370,351,333,295,341,301,409,398,410,371,751,494,743,736,736,715,645,580,29968,29971,29971,2454,2158,1764,29960,29961,29966,29963,29972,29973,29967,29972,29975,29976,29976,29977,29976,29967,29983,29984,29994,29995,29996]} 1. e4 {[%emt 0:00:01][%cal Be2e4,Be4e5][%mdl 32]} c5 {[%emt 0:00:01]} 2. c3 {[%emt 0:00:01]} Nf6 {[%emt 0:00:02]} 3. e5 {[%emt 0:00:02]} Nd5 {[%emt 0:00:02]} 4. d4 {[%emt 0:00:02]} cxd4 {[%emt 0:00:01]} 5. Nf3 {[%emt 0:00:02]} d6 {[%emt 0:00:02]} 6. cxd4 {[%emt 0:00:02]} Nc6 {[%emt 0:00:01]} 7. Bc4 {[%emt 0:00:04]} dxe5 {[%emt 0:00:07]} 8. dxe5 {[%emt 0:00:04]} Be6 {[%emt 0:00:03][%cal Od5e3] B22: Sicilian: 2 c3.} 9. O-O {[%emt 0:02:52]} Nc7 {[%emt 0:00:36]} 10. Qe2 {[%emt 0:00:53]} Bxc4 {[%emt 0:00:15] The position is equal.} 11. Qxc4 {[%emt 0:00:01] [#]} g6 $146 {[%emt 0:00:02]} ({Predecessor:} 11... e6 12. Nc3 Be7 13. Rd1 Qc8 14. Bf4 O-O 15. Rac1 Nb4 16. a3 Nbd5 17. Bg5 Qd8 18. Bxe7 Qxe7 19. Nxd5 Nxd5 {½-½ (32) Benone,M (1017)-Kohut,G (1466) FICGS email 2016}) 12. Qh4 {[%emt 0:01:09]} h5 {[%emt 0:02:08]} 13. Nc3 {[%emt 0:00:11]} Bg7 {[%emt 0:00:02]} 14. Re1 {[%emt 0:02:02]} Qd7 {[%emt 0:01:47]} 15. h3 {[%emt 0:01:22] Inhibits Qg4.} Qf5 {[%emt 0:04:17]} 16. Bf4 {[%emt 0:01:19]} Ne6 {[%emt 0:00:25]} 17. Bg3 {[%emt 0:00:06]} Rd8 {[%emt 0:01:20] Prevents Nd5.} 18. Rad1 {[%emt 0:01:17] Inhibits Ned4.} Rxd1 {[%emt 0:01:15]} 19. Rxd1 {[%emt 0:00:01]} Qc2 {[%emt 0:00:08]} 20. Qc4 {[%emt 0:03:26]} a6 {[%emt 0:01:55] Inhibits Qb5.} (20... O-O $5 {[%cal Rc2b2]}) 21. Kh2 {[%emt 0:01:00]} ({Better is} 21. Rd2 $11 Qc1+ 22. Rd1) 21... g5 {[%emt 0:01:00]} (21... O-O $15) 22. h4 {[%emt 0:00:34]} g4 {[%emt 0:00:27]} 23. Nd4 {[%emt 0:00:54]} Nexd4 $17 {[%emt 0:00:43]} 24. Rxd4 {[%emt 0:00:01] [#]} Qxb2 {[%emt 0:01:31]} (24... O-O $1 $17 25. Nd5 Qxb2) 25. Rd1 {[%emt 0:00:38] Hoping for Rb1.} O-O {[%emt 0:00:20]} 26. Qc5 {[%emt 0:00:44]} Qc2 {[%emt 0:00:26]} 27. Rd7 {[%emt 0:00:16][%cal Bd1d7,Bd7b7,Bb7b6][%mdl 32]} Qf5 {[%emt 0:00:17]} (27... Rb8 $11 {keeps the balance.}) 28. Rxb7 $16 {[%emt 0:00:10]} Nxe5 {[%emt 0:00:01][%cal Oe5f3] And now ...Nf3+! would win.} 29. Nd5 {[%emt 0:00:14]} ({Much weaker is} 29. Qxe7 Ng6 30. Qe3 {[#]} Nxh4 $1 $11) 29... Ng6 {[%emt 0:00:28]} 30. Nxe7+ {[%emt 0:00:09]} Nxe7 {[%emt 0:00:01]} 31. Qxe7 {[%emt 0:00:02]} Qd5 {[%emt 0:00:13]} 32. Rb6 {[%emt 0:00:27]} Qxa2 {[%emt 0:00:20]} 33. Qg5 {[%emt 0:00:05] Inhibits Qd5. White is more active.} Qe2 {[%emt 0:00:08] Inhibits Be5.} 34. Qxh5 {[%emt 0:00:10]} (34. Rh6 $16) 34... Re8 $2 {[%emt 0:00:05] White now steadily converts the win.} (34... f5 $1 $11 {and Black stays safe.}) 35. Rb4 $40 {[%emt 0:00:07][%mdl 128] White has some attack.} (35. Qg5 $18) 35... a5 $2 {[%emt 0:00:18][%mdl 8192]} (35... Re4 $1 $11 36. Rb7 Re7 37. Rb8+ Re8 38. Rxe8+ Qxe8) 36. Qxa5 $18 {[%emt 0:00:20]} ({But not} 36. Rxg4 Re6 37. Qf5 Rb6) 36... Qe6 {[%emt 0:00:11]} 37. Qg5 {[%emt 0:00:07]} f6 {[%emt 0:00:10]} 38. Qxg4 {[%emt 0:00:16]} Qxg4 {[%emt 0:00:04]} 39. Rxg4 {[%emt 0:00:02][%mdl 4096] Endgame KRB-KRB} Kh7 {[%emt 0:00:05]} 40. Rb4 {[%emt 0:00:04]} Re7 {[%emt 0:00:06]} 41. h5 {[%emt 0:00:06]} Kh6 {[%emt 0:00:02]} 42. Rb5 {[%emt 0:00:01] Bf4+ is the strong threat.} Rf7 $2 {[%emt 0:00:26]} (42... Re4 43. Rf5 Kh7) 43. Bf4+ {[%emt 0:00:03]} Kh7 {[%emt 0:00:01]} 44. g4 {[%emt 0:00:06]} Rd7 {[%emt 0:00:05]} 45. Kg3 {[%emt 0:00:06]} Ra7 {[%emt 0:00:07]} 46. Rc5 {[%emt 0:00:06] Black must now prevent Rc7.} Bh6 {[%emt 0:00:27]} 47. Bxh6 {[%emt 0:00:12]} Kxh6 {[%emt 0:00:01] KR-KR} 48. Rc6 {[%emt 0:00:02]} (48. f3 $142 Rb7 49. Kf4 Kh7 50. Kf5 Kg7 51. f4 Rd7 52. h6+ Kxh6 53. Kxf6 Rd6+ 54. Kf5) 48... Kg7 {[%emt 0:00:07]} 49. Rc4 {[%emt 0:00:30]} Ra3+ {[%emt 0:00:08]} 50. Kf4 {[%emt 0:00:04] White mates.} Ra5 {[%emt 0:00:08]} 51. f3 {[%emt 0:00:08][%cal Bf2f3,Bf3f4][%mdl 32]} Ra7 {[%emt 0:00:04]} 52. Rc5 {[%emt 0:00:20]} Rd7 {[%emt 0:00:18]} 53. Kf5 {[%emt 0:00:06]} Rd3 {[%emt 0:00:30]} 54. Rc7+ {[%emt 0:00:22]} Kh6 {[%emt 0:00:02]} 55. f4 {[%emt 0:00:05]} Rd5+ {[%emt 0:00:03]} 56. Ke6 {[%emt 0:00:27]} Rd4 {[%emt 0:00:08]} 57. Rf7 {[%emt 0:00:09]} Re4+ {[%emt 0:00:10]} 58. Kf5 {[%emt 0:00:07]} Re6 {Weighted Error Value: White=0.22 (precise) /Black=0.48} 1-0

[Event "Susha Chess Rapid Women 2022"]
[Site "Shusha"]
[Date "2022.09.22"]
[Round "3.1"]
[White "Fataliyeva, Ulviyya"]
[Black "Beydullayeva, Govhar"]
[Result "0-1"]
[ECO "A45"]
[WhiteElo "2408"]
[BlackElo "2346"]
[Annotator "TA"]
[PlyCount "62"]
[EventDate "2022.09.21"]
[EventType "tourn"]
[EventCountry "AZE"]
[SourceTitle "playchess.com"]
[Source "ChessBase"]
[SourceQuality "1"]
[TimeControl "900+10"]

{[%evp 9,62,0,66,73,90,87,85,91,102,95,105,-94,-84,-248,-71,-282,-214,-325,-318,-319,-52,-52,-47,-53,-39,-34,-53,-131,-88,-343,-338,-352,-348,-336,-256,-256,-257,-247,-244,-252,-256,-248,-227,-217,-221,-325,-331,-335,-334,-337,-320,-353,-335,-1143,-999]} 1. d4 {[%emt 0:00:01]} Nf6 {[%emt 0:00:02]} 2. Bg5 {[%emt 0:00:02]} d5 {[%emt 0:00:02]} 3. e3 {[%emt 0:00:02]} c5 {[%emt 0:00:01]} 4. Bxf6 {[%emt 0:00:09]} gxf6 {[%emt 0:00:01]} 5. dxc5 {[%emt 0:00:03]} e5 {[%emt 0:00:21]} (5... Nc6 $11) 6. Nc3 $14 {[%emt 0:00:04] D00: 1 d4 d5: Unusual lines.} Be6 {[%emt 0:00:39]} 7. Qf3 {[%emt 0:00:02]} e4 {[%emt 0:02:16]} 8. Qh5 {[%emt 0:00:01] [#] 0-0-0 is the strong threat. White is better.} Nc6 $146 {[%emt 0:02:01]} ({Predecessor:} 8... f5 9. O-O-O Qd7 10. Bc4 dxc4 11. Rxd7 Nxd7 12. Nh3 O-O-O 13. Ng5 Ne5 14. Nxe6 fxe6 15. Nxe4 {1-0 (22) Grigorov,G (2507)-Samoun,F (2306) Riga 2021}) 9. O-O-O {[%emt 0:00:26] aiming for Bc4.} Qa5 {[%emt 0:00:41]} 10. Nxd5 $2 {[%emt 0:01:42]} (10. Rxd5 $16 {stays on course. Strongly threatening Bb5.} Bxd5 11. Qxd5 Qxc5 12. Qxe4+ (12. Nxe4 Qxc2+ 13. Kxc2 Nb4+ 14. Kb1 Nxd5 $14) 12... Qe5 13. Qf3) 10... O-O-O $17 {[%emt 0:00:28]} 11. Nc3 {[%emt 0:03:51]} (11. Nxf6 $2 Bg7 12. a3 (12. Qg5 $2 Qxa2 13. Rd6 Qa1+ 14. Kd2 Qa5+ 15. Kd1 Rxd6+ 16. cxd6 Qxg5 $19) 12... Rxd1+ 13. Qxd1 Rd8 $19) (11. Bc4 $17 Ne5 12. Bb3) 11... Rxd1+ $2 {[%emt 0:00:02]} (11... Bxc5 $19 {is more deadly.} 12. Kb1 Rxd1+ 13. Qxd1 Ne5) 12. Kxd1 $2 {[%emt 0:04:47]} (12. Qxd1 $17 Bxc5 13. Kb1 (13. Nxe4 Rd8 $17)) 12... f5 {[%emt 0:00:36] White must now prevent ...Bg7.} 13. Bb5 {[%emt 0:01:43]} (13. Bc4 {was worth a try.} Bxc4 14. Qxf5+ Kb8 15. Qxe4 Bxa2 16. Qf4+ Ka8 17. Qa4 Qxa4 18. Nxa4) 13... Bg7 $19 {[%emt 0:01:39]} 14. Nge2 {[%emt 0:00:27] [#]} Rd8+ $2 {[%emt 0:01:26]} (14... Nb4 $1 $19 {[%cal Rb4a2]} 15. a4 a6) 15. Kc1 $15 {[%emt 0:00:08] And now Bxc6 would win.} Nb4 {[%emt 0:00:49]} 16. a3 {[%emt 0:01:24]} Nd5 $1 {[%emt 0:02:07]} 17. Nxd5 {[%emt 0:01:10]} Bxd5 $40 {[%emt 0:00:45][%mdl 128] Black attacks. A strong pair of Bishops.} ({Don't take} 17... Rxd5 18. Bc4 Rd8 19. Bxe6+ fxe6 20. Qf7 $16 (20. Qxh7 Qd2+ 21. Kb1 Bxb2 $16)) 18. a4 {[%emt 0:01:36]} (18. Nd4 $15 Bxd4 19. exd4 Qxb5 20. Qxf5+ Kb8 21. Qf6) 18... a6 {[%emt 0:00:36][%cal Ba7a6,Ba6b5][%mdl 32]} 19. Nd4 {[%emt 0:00:27][%mdl 8192]} (19. Qxh7 $17 {was called for.} Bh8 20. Be8 (20. Qxf5+ Be6 $17) 20... Rxe8 21. Qxf5+ Be6 22. Qxe4) 19... Bxd4 {[%emt 0:00:11]} 20. exd4 {[%emt 0:00:01]} axb5 {[%emt 0:00:07]} 21. Qxf5+ {[%emt 0:00:01]} Be6 {[%emt 0:01:34]} 22. Qxe4 {[%emt 0:00:01]} Qxa4 {[%emt 0:00:00]} 23. c3 {[%emt 0:00:01]} Qa1+ {[%emt 0:00:51]} 24. Qb1 {[%emt 0:00:01]} Qxb1+ {[%emt 0:00:01]} 25. Kxb1 $19 {[%emt 0:00:01][%mdl 4096] Endgame KRB-KR} Bd5 {[%emt 0:00:01]} 26. Re1 {[%emt 0:00:48]} Bxg2 {[%emt 0:00:06]} 27. Re7 {[%emt 0:00:07] [#]} (27. Ka2 {was the only chance.}) 27... Bd5 $1 {[%emt 0:00:23]} 28. Kc2 {[%emt 0:00:01]} Be6 {[%emt 0:00:30]} 29. Kd3 {[%emt 0:00:23]} Rd5 {[%emt 0:00:33]} 30. Ke4 {[%emt 0:00:21]} Rh5 {[%emt 0:00:15] Threatens to win with ...Kd8.} 31. b4 $2 {[%emt 0:00:15]} (31. Kf3) 31... Kd8 {[%emt 0:00:03] Weighted Error Value: White=0.95/Black=0.28 (precise)} 0-1